[Event "Josef Kupper Memorial 2019"]
[Site "Zurich"]
[Date "2019.08.14"]
[Round "1.2"]
[White "Kovalenko, Igor"]
[Black "Giesinger, Elias"]
[Result "1-0"]
[ECO "A46"]
[WhiteElo "2654"]
[BlackElo "2221"]
[Annotator "ChessBase"]
[PlyCount "111"]
[EventDate "2019.08.13"]
[EventType "swiss"]
[EventCountry "SUI"]
[SourceTitle "playchess.com"]
[Source "ChessBase"]
[SourceQuality "1"]
[TimeControl "40/5400+30:1800+30"]

1. d4 {[%emt 0:00:00]} Nf6 {[%emt 0:00:00]} 2. Nf3 {[%emt 0:00:00]} e6 {[%emt 0:00:00]} 3. e3 {[%emt 0:00:00]} c5 {[%emt 0:02:21]} 4. Bd3 {[%emt 0:00:00]} Be7 {[%emt 0:02:17]} 5. O-O {[%emt 0:00:00]} cxd4 {[%emt 0:02:23]} 6. exd4 {[%emt 0:00:01]} O-O {[%emt 0:00:07]} 7. Re1 {[%emt 0:00:27]} b6 {[%emt 0:00:16]} 8. c4 {[%emt 0:00:04]} d5 {[%emt 0:04:20]} 9. cxd5 {[%emt 0:01:18]} Nxd5 {[%emt 0:06:31]} 10. Nc3 {[%emt 0:01:33]} Bb7 {[%emt 0:01:57]} 11. Re5 {[%emt 0:23:10]} Nd7 {[%emt 0:07:41]} 12. Rh5 {[%emt 0:00:07]} N7f6 {[%emt 0:00:23]} 13. Rh4 {[%emt 0:00:44]} Rc8 {[%emt 0:03:19]} 14. Bd2 {[%emt 0:01:15]} Nxc3 {[%emt 0:07:30]} 15. bxc3 {[%emt 0:00:09]} Rc7 {[%emt 0:02:17]} 16. a4 {[%emt 0:04:10]} Qa8 {[%emt 0:06:39]} 17. Ne5 {[%emt 0:04:38]} Be4 {[%emt 0:06:18]} 18. Bg5 {[%emt 0:00:54]} Bxd3 {[%emt 0:08:02]} 19. Qxd3 {[%emt 0:00:04]} g6 {[%emt 0:01:28]} 20. c4 {[%emt 0:04:51]} Qd8 {[%emt 0:04:25]} 21. Qh3 {[%emt 0:02:00]} Nh5 {[%emt 0:01:49]} 22. Bxe7 {[%emt 0:13:43]} Qxe7 {[%emt 0:00:25]} 23. Rg4 {[%emt 0:00:01]} Nf6 {[%emt 0:06:36]} 24. Rg3 {[%emt 0:00:11]} Nd7 {[%emt 0:05:01]} 25. Nf3 {[%emt 0:05:53]} Qf6 {[%emt 0:02:43]} 26. Ng5 {[%emt 0:01:02]} Qg7 {[%emt 0:00:08]} 27. Rc3 {[%emt 0:01:15]} Rfc8 {[%emt 0:02:10]} 28. Rac1 {[%emt 0:00:04]} h6 {[%emt 0:03:56]} 29. Nf3 {[%emt 0:00:02]} Nf6 {[%emt 0:00:35]} 30. Nd2 {[%emt 0:00:39]} Rd7 {[%emt 0:01:22]} 31. Nb3 {[%emt 0:00:11]} Ne4 {[%emt 0:00:47]} 32. R3c2 {[%emt 0:00:07]} Rdc7 {[%emt 0:01:18]} 33. Qd3 {[%emt 0:00:46]} Nf6 {[%emt 0:02:18]} 34. h3 {[%emt 0:01:12]} Qf8 {[%emt 0:00:46]} 35. c5 {[%emt 0:00:47]} Nd5 {[%emt 0:01:06]} 36. Rc4 {[%emt 0:00:50]} Qe8 {[%emt 0:03:41]} 37. Nd2 {[%emt 0:00:20]} Nf6 {[%emt 0:01:51]} 38. Qe3 {[%emt 0:02:10]} h5 {[%emt 0:01:25]} 39. R1c2 {[%emt 0:03:19]} Qd8 {[%emt 0:01:30]} 40. Qf4 {[%emt 0:04:04]} Nd5 {[%emt 0:01:37]} 41. Qe5 {[%emt 0:30:21]} bxc5 {[%emt 0:09:08]} 42. dxc5 {[%emt 0:00:00]} Qf6 {[%emt 0:00:34]} 43. Qg3 {[%emt 0:00:00]} Qa1+ {[%emt 0:07:14]} 44. Rc1 {[%emt 0:00:00]} Qf6 {[%emt 0:03:02]} 45. Ne4 {[%emt 0:00:00]} Qe7 {[%emt 0:00:41]} 46. Qe5 {[%emt 0:00:00]} Rc6 {[%emt 0:04:31]} 47. Rb1 {[%emt 0:00:00]} Qc7 {[%emt 0:01:39]} 48. Nd6 {[%emt 0:00:00]} Rb8 {[%emt 0:01:08]} 49. Rcc1 {[%emt 0:00:00]} Rb4 {[%emt 0:02:51]} 50. Rxb4 {[%emt 0:00:00]} Nxb4 {[%emt 0:00:12]} 51. Qd4 {[%emt 0:00:00]} e5 {[%emt 0:02:33]} 52. Qxe5 {[%emt 0:00:00]} Nd3 {[%emt 0:00:40]} 53. Qe8+ {[%emt 0:00:00]} Kh7 {[%emt 0:02:11]} 54. Rd1 {[%emt 0:00:00]} Nxc5 {[%emt 0:00:17]} 55. Nxf7 {[%emt 0:00:00]} Qc8 {[%emt 0:00:46]} 56. Rd8 {[%emt 0:00:00]} 1-0

[Event "Josef Kupper Memorial 2019"]
[Site "Zurich"]
[Date "2019.08.14"]
[Round "1.3"]
[White "Buehler, Michael"]
[Black "Iturrizaga Bonelli, Eduardo"]
[Result "0-1"]
[ECO "A15"]
[WhiteElo "2154"]
[BlackElo "2635"]
[Annotator "ChessBase"]
[PlyCount "56"]
[EventDate "2019.08.13"]
[EventType "swiss"]
[EventCountry "SUI"]
[SourceTitle "playchess.com"]
[Source "ChessBase"]
[SourceQuality "1"]
[TimeControl "40/5400+30:1800+30"]

1. c4 {[%emt 0:00:00]} Nf6 {[%emt 0:00:02]} 2. g3 {[%emt 0:00:00]} g6 {[%emt 0:00:49]} 3. Bg2 {[%emt 0:00:00]} Bg7 {[%emt 0:00:07]} 4. Nc3 {[%emt 0:00:11]} O-O {[%emt 0:00:13]} 5. Nf3 {[%emt 0:00:05]} e6 {[%emt 0:00:27]} 6. d4 {[%emt 0:00:47]} d5 {[%emt 0:00:18]} 7. O-O {[%emt 0:02:20]} b6 {[%emt 0:00:20]} 8. cxd5 {[%emt 0:01:17]} exd5 {[%emt 0:00:07]} 9. Bf4 {[%emt 0:02:59]} Bb7 {[%emt 0:00:06]} 10. Nb5 {[%emt 0:02:27]} Ne8 {[%emt 0:11:10]} 11. Qd2 {[%emt 0:03:43]} c6 {[%emt 0:06:00]} 12. Nc3 {[%emt 0:00:03]} Nd6 {[%emt 0:00:03]} 13. Bh6 {[%emt 0:01:15]} Nd7 {[%emt 0:04:19]} 14. Bxg7 {[%emt 0:08:37]} Kxg7 {[%emt 0:00:05]} 15. a4 {[%emt 0:00:07]} Re8 {[%emt 0:00:40]} 16. Rfd1 {[%emt 0:02:16]} a5 {[%emt 0:05:18]} 17. b3 {[%emt 0:04:15]} Ne4 {[%emt 0:05:47]} 18. Nxe4 {[%emt 0:03:19]} dxe4 {[%emt 0:00:02]} 19. Ne1 {[%emt 0:02:44]} h5 {[%emt 0:00:02]} 20. Nc2 {[%emt 0:04:15]} h4 {[%emt 0:00:03]} 21. Qf4 {[%emt 0:02:44]} hxg3 {[%emt 0:00:15]} 22. hxg3 {[%emt 0:00:41]} Nf6 {[%emt 0:00:20]} 23. Qd2 {[%emt 0:12:34]} Qd5 {[%emt 0:03:20]} 24. Ne3 {[%emt 0:01:04]} Qh5 {[%emt 0:00:04]} 25. b4 {[%emt 0:09:57]} Rh8 {[%emt 0:01:03]} 26. Rab1 {[%emt 0:00:31]} Qh2+ {[%emt 0:00:56]} 27. Kf1 {[%emt 0:00:04]} Bc8 {[%emt 0:00:01]} 28. Qc3 {[%emt 0:06:58]} Bh3 {[%emt 0:03:30]} 0-1

[Event "Josef Kupper Memorial 2019"]
[Site "Zurich"]
[Date "2019.08.14"]
[Round "1.4"]
[White "Bauer, Christian"]
[Black "Rohrer, Christophe"]
[Result "1-0"]
[ECO "C24"]
[WhiteElo "2626"]
[BlackElo "2208"]
[Annotator "ChessBase"]
[PlyCount "101"]
[EventDate "2019.08.13"]
[EventType "swiss"]
[EventCountry "SUI"]
[SourceTitle "playchess.com"]
[Source "ChessBase"]
[SourceQuality "1"]
[TimeControl "40/5400+30:1800+30"]

1. e4 {[%emt 0:00:00]} e5 {[%emt 0:00:00]} 2. Bc4 {[%emt 0:00:00]} Nf6 {[%emt 0:00:23]} 3. d3 {[%emt 0:00:00]} c6 {[%emt 0:00:36]} 4. Nf3 {[%emt 0:00:05]} Be7 {[%emt 0:00:50]} 5. Bb3 {[%emt 0:00:33]} O-O {[%emt 0:01:11]} 6. Nbd2 {[%emt 0:01:15]} d6 {[%emt 0:01:20]} 7. c3 {[%emt 0:01:16]} Nbd7 {[%emt 0:03:04]} 8. O-O {[%emt 0:03:53]} Nc5 {[%emt 0:03:54]} 9. Bc2 {[%emt 0:00:07]} Ne6 {[%emt 0:02:38]} 10. Re1 {[%emt 0:05:20]} Qc7 {[%emt 0:09:21]} 11. Nf1 {[%emt 0:00:50]} Re8 {[%emt 0:02:18]} 12. Ng3 {[%emt 0:03:49]} g6 {[%emt 0:02:35]} 13. d4 {[%emt 0:02:16]} Bf8 {[%emt 0:04:09]} 14. h3 {[%emt 0:03:11]} Nf4 {[%emt 0:08:20]} 15. Bxf4 {[%emt 0:13:12]} exf4 {[%emt 0:00:14]} 16. Nf1 {[%emt 0:00:08]} d5 {[%emt 0:05:22]} 17. e5 {[%emt 0:00:27]} Nh5 {[%emt 0:00:55]} 18. N1h2 {[%emt 0:02:50]} Be6 {[%emt 0:04:13]} 19. Ng5 {[%emt 0:03:25]} Bh6 {[%emt 0:10:51]} 20. Nxe6 {[%emt 0:03:49]} Rxe6 {[%emt 0:00:37]} 21. Qg4 {[%emt 0:13:55]} Rae8 {[%emt 0:07:01]} 22. Nf3 {[%emt 0:02:21]} Qd8 {[%emt 0:04:19]} 23. h4 {[%emt 0:13:34]} R6e7 {[%emt 0:02:41]} 24. Ng5 {[%emt 0:00:34]} Qc8 {[%emt 0:03:08]} 25. Qf3 {[%emt 0:01:13]} f5 {[%emt 0:03:02]} 26. a4 {[%emt 0:01:07]} Bxg5 {[%emt 0:01:16]} 27. hxg5 {[%emt 0:00:01]} Rf7 {[%emt 0:01:15]} 28. Bb3 {[%emt 0:00:52]} Ng7 {[%emt 0:02:59]} 29. c4 {[%emt 0:01:08]} dxc4 {[%emt 0:00:32]} 30. Bxc4 {[%emt 0:00:06]} Ne6 {[%emt 0:00:06]} 31. Rad1 {[%emt 0:01:37]} Kg7 {[%emt 0:01:31]} 32. d5 {[%emt 0:05:16]} cxd5 {[%emt 0:02:00]} 33. Bxd5 {[%emt 0:00:59]} Nxg5 {[%emt 0:00:59]} 34. Qxf4 {[%emt 0:00:05]} Ne6 {[%emt 0:00:21]} 35. Qh4 {[%emt 0:00:38]} Qc5 {[%emt 0:02:10]} 36. Bb3 {[%emt 0:02:44]} g5 {[%emt 0:03:59]} 37. Qh5 {[%emt 0:05:45]} h6 {[%emt 0:00:35]} 38. Re3 {[%emt 0:02:18]} Rfe7 {[%emt 0:03:09]} 39. Rd6 {[%emt 0:02:59]} Qc1+ {[%emt 0:01:46]} 40. Rd1 {[%emt 0:02:34]} Qc7 {[%emt 0:03:39]} 41. Rh3 {[%emt 0:08:03]} Rh8 {[%emt 0:01:53]} 42. Rc3 {[%emt 0:00:14]} Qxe5 {[%emt 0:06:06]} 43. Re3 {[%emt 0:01:41]} Qf6 {[%emt 0:01:13]} 44. Bxe6 {[%emt 0:11:24]} Rxe6 {[%emt 0:04:23]} 45. Rd7+ {[%emt 0:00:00]} Kf8 {[%emt 0:00:18]} 46. Rxe6 {[%emt 0:00:56]} Qxe6 {[%emt 0:00:06]} 47. Qd1 {[%emt 0:01:18]} Rg8 {[%emt 0:03:28]} 48. Rxb7 {[%emt 0:01:10]} Rg6 {[%emt 0:01:58]} 49. Qd8+ {[%emt 0:01:31]} Qe8 {[%emt 0:00:07]} 50. Qc7 {[%emt 0:00:43]} Qe1+ {[%emt 0:02:33]} 51. Kh2 {[%emt 0:00:01]} 1-0

[Event "Josef Kupper Memorial 2019"]
[Site "Zurich"]
[Date "2019.08.14"]
[Round "1.5"]
[White "Csajka, Felix"]
[Black "Van Foreest, Jorden"]
[Result "0-1"]
[ECO "A15"]
[WhiteElo "2186"]
[BlackElo "2626"]
[Annotator "ChessBase"]
[PlyCount "72"]
[EventDate "2019.08.13"]
[EventType "swiss"]
[EventCountry "SUI"]
[SourceTitle "playchess.com"]
[Source "ChessBase"]
[SourceQuality "1"]
[TimeControl "40/5400+30:1800+30"]

1. c4 {[%emt 0:00:00]} Nf6 {[%emt 0:00:19]} 2. Nf3 {[%emt 0:00:00]} g6 {[%emt 0:00:36]} 3. Nc3 {[%emt 0:00:19]} Bg7 {[%emt 0:00:48]} 4. e4 {[%emt 0:00:49]} e5 {[%emt 0:00:13]} 5. d4 {[%emt 0:06:24]} exd4 {[%emt 0:00:07]} 6. Nxd4 {[%emt 0:00:19]} O-O {[%emt 0:00:05]} 7. Be2 {[%emt 0:00:47]} Re8 {[%emt 0:00:06]} 8. f3 {[%emt 0:00:38]} c6 {[%emt 0:00:06]} 9. Nc2 {[%emt 0:04:26]} d5 {[%emt 0:05:46]} 10. exd5 {[%emt 0:09:11]} cxd5 {[%emt 0:01:08]} 11. O-O {[%emt 0:01:56]} Qb6+ {[%emt 0:05:21]} 12. Kh1 {[%emt 0:04:24]} dxc4 {[%emt 0:01:54]} 13. Bxc4 {[%emt 0:01:30]} Nc6 {[%emt 0:00:10]} 14. Bf4 {[%emt 0:03:59]} Bf5 {[%emt 0:01:09]} 15. Qc1 {[%emt 0:02:54]} Ne5 {[%emt 0:10:05]} 16. Be3 {[%emt 0:02:52]} Qc7 {[%emt 0:02:18]} 17. Be2 {[%emt 0:01:33]} Bd3 {[%emt 0:04:43]} 18. Re1 {[%emt 0:05:03]} Bxe2 {[%emt 0:15:09]} 19. Rxe2 {[%emt 0:00:25]} Nd3 {[%emt 0:00:05]} 20. Qd2 {[%emt 0:03:15]} Nxb2 {[%emt 0:02:12]} 21. Na3 {[%emt 0:03:08]} Ng4 {[%emt 0:12:02]} 22. fxg4 {[%emt 0:01:38]} Qxc3 {[%emt 0:00:14]} 23. Qxc3 {[%emt 0:05:01]} Bxc3 {[%emt 0:00:09]} 24. Nb5 {[%emt 0:00:28]} Nc4 {[%emt 0:00:22]} 25. Nxc3 {[%emt 0:01:16]} Rxe3 {[%emt 0:00:05]} 26. Rxe3 {[%emt 0:02:33]} Nxe3 {[%emt 0:00:03]} 27. g5 {[%emt 0:03:41]} Rd8 {[%emt 0:04:45]} 28. Kg1 {[%emt 0:02:06]} Rd2 {[%emt 0:03:28]} 29. g3 {[%emt 0:01:23]} Rg2+ {[%emt 0:00:40]} 30. Kh1 {[%emt 0:00:10]} Rc2 {[%emt 0:00:04]} 31. Ne4 {[%emt 0:00:20]} Ng4 {[%emt 0:01:48]} 32. Kg1 {[%emt 0:02:39]} Nxh2 {[%emt 0:00:46]} 33. Rd1 {[%emt 0:00:31]} Nf3+ {[%emt 0:01:01]} 34. Kf1 {[%emt 0:00:07]} Kg7 {[%emt 0:00:04]} 35. Rd7 {[%emt 0:00:28]} Rxa2 {[%emt 0:00:28]} 36. Rxb7 {[%emt 0:00:53]} Nd2+ {[%emt 0:00:28]} 0-1

[Event "Josef Kupper Memorial 2019"]
[Site "Zurich"]
[Date "2019.08.14"]
[Round "1.6"]
[White "Bluebaum, Matthias"]
[Black "Drechsler, Christoph"]
[Result "1-0"]
[ECO "D35"]
[WhiteElo "2619"]
[BlackElo "2180"]
[Annotator "ChessBase"]
[PlyCount "83"]
[EventDate "2019.08.13"]
[EventType "swiss"]
[EventCountry "SUI"]
[SourceTitle "playchess.com"]
[Source "ChessBase"]
[SourceQuality "1"]
[TimeControl "40/5400+30:1800+30"]

1. d4 {[%emt 0:00:00]} d5 {[%emt 0:00:00]} 2. c4 {[%emt 0:00:00]} e6 {[%emt 0:00:03]} 3. Nc3 {[%emt 0:00:01]} Nf6 {[%emt 0:00:05]} 4. cxd5 {[%emt 0:00:25]} exd5 {[%emt 0:00:07]} 5. Bg5 {[%emt 0:00:05]} Be7 {[%emt 0:00:18]} 6. e3 {[%emt 0:00:27]} c6 {[%emt 0:00:12]} 7. Bd3 {[%emt 0:00:06]} Nbd7 {[%emt 0:00:10]} 8. Nge2 {[%emt 0:00:39]} h6 {[%emt 0:00:13]} 9. Bh4 {[%emt 0:00:20]} Nh5 {[%emt 0:00:11]} 10. Bxe7 {[%emt 0:01:16]} Qxe7 {[%emt 0:00:06]} 11. O-O {[%emt 0:02:17]} O-O {[%emt 0:01:10]} 12. Qc2 {[%emt 0:02:53]} Nb6 {[%emt 0:01:51]} 13. Rae1 {[%emt 0:00:43]} Bd7 {[%emt 0:01:45]} 14. Nc1 {[%emt 0:03:04]} Rae8 {[%emt 0:03:39]} 15. Nb3 {[%emt 0:04:59]} g6 {[%emt 0:07:52]} 16. f3 {[%emt 0:05:24]} f5 {[%emt 0:05:13]} 17. Nc5 {[%emt 0:08:33]} Bc8 {[%emt 0:00:51]} 18. Qb3 {[%emt 0:05:13]} Kh8 {[%emt 0:09:07]} 19. Qa3 {[%emt 0:05:56]} a6 {[%emt 0:03:37]} 20. Qb3 {[%emt 0:02:22]} Na8 {[%emt 0:06:49]} 21. Bb1 {[%emt 0:04:09]} Nf6 {[%emt 0:05:18]} 22. N3a4 {[%emt 0:06:04]} b5 {[%emt 0:01:15]} 23. Nc3 {[%emt 0:00:05]} Nb6 {[%emt 0:00:49]} 24. Nd1 {[%emt 0:01:40]} Nbd7 {[%emt 0:02:40]} 25. Nxd7 {[%emt 0:05:27]} Nxd7 {[%emt 0:02:13]} 26. Qc3 {[%emt 0:01:17]} Bb7 {[%emt 0:02:42]} 27. Nf2 {[%emt 0:02:01]} Rf6 {[%emt 0:03:45]} 28. Nd3 {[%emt 0:04:07]} g5 {[%emt 0:01:29]} 29. f4 {[%emt 0:01:45]} g4 {[%emt 0:04:12]} 30. Ne5 {[%emt 0:00:35]} Rg8 {[%emt 0:05:08]} 31. Rc1 {[%emt 0:01:41]} Nb6 {[%emt 0:01:23]} 32. b3 {[%emt 0:01:17]} Nc8 {[%emt 0:01:45]} 33. Qd2 {[%emt 0:01:17]} Nd6 {[%emt 0:01:04]} 34. Rc5 {[%emt 0:01:25]} Re6 {[%emt 0:05:14]} 35. Bd3 {[%emt 0:03:18]} Ne4 {[%emt 0:05:06]} 36. Bxe4 {[%emt 0:00:11]} dxe4 {[%emt 0:00:02]} 37. Rfc1 {[%emt 0:01:02]} Rc8 {[%emt 0:07:52]} 38. Qc3 {[%emt 0:02:03]} b4 {[%emt 0:05:04]} 39. Qxb4 {[%emt 0:00:55]} Rxe5 {[%emt 0:00:12]} 40. dxe5 {[%emt 0:01:05]} g3 {[%emt 0:04:55]} 41. hxg3 {[%emt 0:32:42]} Rg8 {[%emt 0:30:07]} 42. Rb5 {[%emt 0:01:40]} 1-0

[Event "Josef Kupper Memorial 2019"]
[Site "Zurich"]
[Date "2019.08.14"]
[Round "1.8"]
[White "Donchenko, Alexander"]
[Black "Player, Edmund C"]
[Result "1-0"]
[ECO "A06"]
[WhiteElo "2618"]
[BlackElo "2202"]
[Annotator "ChessBase"]
[PlyCount "63"]
[EventDate "2019.08.13"]
[EventType "swiss"]
[EventCountry "SUI"]
[SourceTitle "playchess.com"]
[Source "ChessBase"]
[SourceQuality "1"]
[TimeControl "40/5400+30:1800+30"]

1. Nf3 {[%emt 0:00:00]} d5 {[%emt 0:00:00]} 2. e3 {[%emt 0:01:18]} e6 {[%emt 0:01:20]} 3. c4 {[%emt 0:00:33]} dxc4 {[%emt 0:00:39]} 4. Bxc4 {[%emt 0:00:06]} Nf6 {[%emt 0:00:17]} 5. O-O {[%emt 0:01:16]} a6 {[%emt 0:02:35]} 6. b3 {[%emt 0:01:02]} b5 {[%emt 0:01:25]} 7. Be2 {[%emt 0:00:14]} Bb7 {[%emt 0:02:07]} 8. a4 {[%emt 0:01:05]} b4 {[%emt 0:15:14]} 9. Bb2 {[%emt 0:00:48]} Nbd7 {[%emt 0:00:15]} 10. d3 {[%emt 0:02:00]} g6 {[%emt 0:04:42]} 11. Nbd2 {[%emt 0:02:29]} Bg7 {[%emt 0:00:50]} 12. Nc4 {[%emt 0:08:51]} a5 {[%emt 0:03:03]} 13. Rc1 {[%emt 0:05:44]} O-O {[%emt 0:01:13]} 14. e4 {[%emt 0:01:43]} Qe7 {[%emt 0:21:33]} 15. Qc2 {[%emt 0:06:38]} Rfc8 {[%emt 0:08:56]} 16. Nfd2 {[%emt 0:03:22]} Nb6 {[%emt 0:11:14]} 17. Bf3 {[%emt 0:03:46]} Nfd7 {[%emt 0:04:47]} 18. Bxg7 {[%emt 0:04:52]} Kxg7 {[%emt 0:00:13]} 19. Qb2+ {[%emt 0:02:06]} Kg8 {[%emt 0:06:17]} 20. Ne3 {[%emt 0:04:06]} Qg5 {[%emt 0:06:19]} 21. Be2 {[%emt 0:18:42]} Qe5 {[%emt 0:03:40]} 22. Qc2 {[%emt 0:01:47]} Qd6 {[%emt 0:01:47]} 23. f4 {[%emt 0:06:27]} Qd4 {[%emt 0:00:39]} 24. Rf3 {[%emt 0:00:26]} e5 {[%emt 0:01:37]} 25. f5 {[%emt 0:00:32]} gxf5 {[%emt 0:01:10]} 26. Kh1 {[%emt 0:00:20]} fxe4 {[%emt 0:00:27]} 27. dxe4 {[%emt 0:00:46]} Qd6 {[%emt 0:00:31]} 28. Ndc4 {[%emt 0:04:44]} Qc6 {[%emt 0:00:37]} 29. Nf5 {[%emt 0:01:02]} Re8 {[%emt 0:00:32]} 30. Qd2 {[%emt 0:00:45]} Kh8 {[%emt 0:00:25]} 31. Nxb6 {[%emt 0:00:54]} Qxe4 {[%emt 0:00:33]} 32. Nxd7 {[%emt 0:00:18]} 1-0

[Event "Josef Kupper Memorial 2019"]
[Site "Zurich"]
[Date "2019.08.14"]
[Round "1.9"]
[White "Szakolczai, Peter"]
[Black "Svane, Rasmus"]
[Result "0-1"]
[ECO "B10"]
[WhiteElo "2163"]
[BlackElo "2610"]
[Annotator "ChessBase"]
[PlyCount "86"]
[EventDate "2019.08.13"]
[EventType "swiss"]
[EventCountry "SUI"]
[SourceTitle "playchess.com"]
[Source "ChessBase"]
[SourceQuality "1"]
[TimeControl "40/5400+30:1800+30"]

1. e4 {[%emt 0:00:00]} c6 {[%emt 0:00:05]} 2. Nf3 {[%emt 0:01:07]} d5 {[%emt 0:00:08]} 3. exd5 {[%emt 0:00:21]} cxd5 {[%emt 0:00:15]} 4. Ne5 {[%emt 0:00:15]} a6 {[%emt 0:04:18]} 5. d4 {[%emt 0:01:20]} Nc6 {[%emt 0:00:08]} 6. c3 {[%emt 0:03:58]} Bf5 {[%emt 0:13:40]} 7. g4 {[%emt 0:07:18]} Be4 {[%emt 0:06:02]} 8. f3 {[%emt 0:01:00]} Bxb1 {[%emt 0:00:18]} 9. Rxb1 {[%emt 0:00:09]} Nxe5 {[%emt 0:00:50]} 10. dxe5 {[%emt 0:00:12]} e6 {[%emt 0:00:07]} 11. Be3 {[%emt 0:02:42]} Rc8 {[%emt 0:13:30]} 12. Bd3 {[%emt 0:19:11]} Bc5 {[%emt 0:02:28]} 13. Bxc5 {[%emt 0:01:23]} Rxc5 {[%emt 0:00:03]} 14. Qa4+ {[%emt 0:01:28]} Qd7 {[%emt 0:04:12]} 15. Qd4 {[%emt 0:03:50]} Rc8 {[%emt 0:09:27]} 16. O-O {[%emt 0:02:32]} h5 {[%emt 0:01:15]} 17. Rf2 {[%emt 0:04:53]} Ne7 {[%emt 0:04:47]} 18. Re1 {[%emt 0:00:37]} Nc6 {[%emt 0:07:10]} 19. Qf4 {[%emt 0:02:16]} Qe7 {[%emt 0:01:55]} 20. Rg2 {[%emt 0:04:53]} hxg4 {[%emt 0:03:33]} 21. fxg4 {[%emt 0:03:05]} Rh3 {[%emt 0:04:09]} 22. Bf1 {[%emt 0:01:57]} g5 {[%emt 0:11:19]} 23. Qf2 {[%emt 0:03:50]} Kd7 {[%emt 0:01:04]} 24. Qb6 {[%emt 0:01:16]} Rc7 {[%emt 0:03:02]} 25. Rf2 {[%emt 0:00:27]} Rh4 {[%emt 0:01:58]} 26. h3 {[%emt 0:00:14]} Kc8 {[%emt 0:00:38]} 27. b4 {[%emt 0:05:06]} d4 {[%emt 0:01:26]} 28. b5 {[%emt 0:01:28]} axb5 {[%emt 0:00:42]} 29. cxd4 {[%emt 0:01:01]} Rh8 {[%emt 0:02:09]} 30. Rc1 {[%emt 0:02:58]} Qa3 {[%emt 0:02:08]} 31. Rcc2 {[%emt 0:07:20]} Qg3+ {[%emt 0:00:40]} 32. Bg2 {[%emt 0:05:20]} Rxh3 {[%emt 0:01:00]} 33. d5 {[%emt 0:01:20]} exd5 {[%emt 0:00:17]} 34. e6 {[%emt 0:00:09]} f6 {[%emt 0:01:35]} 35. Qc5 {[%emt 0:02:13]} Rh8 {[%emt 0:00:20]} 36. Qxd5 {[%emt 0:00:22]} Qh2+ {[%emt 0:00:43]} 37. Kf1 {[%emt 0:00:02]} Rd8 {[%emt 0:00:18]} 38. e7 {[%emt 0:01:23]} Rxd5 {[%emt 0:00:38]} 39. e8=Q+ {[%emt 0:00:13]} Rd8 {[%emt 0:00:08]} 40. Qe6+ {[%emt 0:01:20]} Kb8 {[%emt 0:00:08]} 41. Bxc6 {[%emt 0:31:10]} Qh3+ {[%emt 0:30:31]} 42. Ke1 {[%emt 0:07:42]} bxc6 {[%emt 0:00:00]} 43. Qe4 {[%emt 0:00:00]} Rcd7 {[%emt 0:00:00]} 0-1

[Event "Josef Kupper Memorial 2019"]
[Site "Zurich"]
[Date "2019.08.14"]
[Round "1.10"]
[White "Bogner, Sebastian"]
[Black "Bluhm, Sonja Maria"]
[Result "1-0"]
[ECO "D10"]
[WhiteElo "2569"]
[BlackElo "2192"]
[Annotator "ChessBase"]
[PlyCount "73"]
[EventDate "2019.08.13"]
[EventType "swiss"]
[EventCountry "SUI"]
[SourceTitle "playchess.com"]
[Source "ChessBase"]
[SourceQuality "1"]
[TimeControl "40/5400+30:1800+30"]

1. d4 {[%emt 0:00:00]} d5 {[%emt 0:00:00]} 2. c4 {[%emt 0:00:00]} c6 {[%emt 0:00:00]} 3. Nc3 {[%emt 0:00:30]} Nf6 {[%emt 0:00:26]} 4. e3 {[%emt 0:00:06]} a6 {[%emt 0:02:28]} 5. Qc2 {[%emt 0:01:19]} e6 {[%emt 0:03:07]} 6. Nf3 {[%emt 0:02:00]} Bd6 {[%emt 0:01:53]} 7. b3 {[%emt 0:07:42]} Nbd7 {[%emt 0:01:23]} 8. Bd3 {[%emt 0:00:23]} O-O {[%emt 0:05:14]} 9. Bb2 {[%emt 0:01:43]} Qe7 {[%emt 0:00:55]} 10. O-O {[%emt 0:02:07]} e5 {[%emt 0:09:26]} 11. cxd5 {[%emt 0:03:17]} cxd5 {[%emt 0:00:48]} 12. e4 {[%emt 0:01:17]} exd4 {[%emt 0:18:55]} 13. Nxd5 {[%emt 0:01:08]} Nxd5 {[%emt 0:00:23]} 14. exd5 {[%emt 0:00:06]} Ne5 {[%emt 0:06:28]} 15. Bxh7+ {[%emt 0:20:04]} Kh8 {[%emt 0:00:05]} 16. Nxd4 {[%emt 0:13:12]} Qh4 {[%emt 0:16:04]} 17. Bf5 {[%emt 0:02:37]} Ng4 {[%emt 0:03:05]} 18. h3 {[%emt 0:02:05]} Nf6 {[%emt 0:00:32]} 19. Qd3 {[%emt 0:04:06]} Qf4 {[%emt 0:04:56]} 20. g3 {[%emt 0:01:12]} Qe5 {[%emt 0:04:36]} 21. Rad1 {[%emt 0:00:46]} Qxd5 {[%emt 0:02:54]} 22. Bxc8 {[%emt 0:01:58]} Raxc8 {[%emt 0:00:10]} 23. Nf5 {[%emt 0:00:30]} Qxd3 {[%emt 0:00:46]} 24. Rxd3 {[%emt 0:00:06]} Bc5 {[%emt 0:00:07]} 25. Rf3 {[%emt 0:15:07]} Rc6 {[%emt 0:01:26]} 26. Rc1 {[%emt 0:00:49]} Rfc8 {[%emt 0:01:57]} 27. Rc4 {[%emt 0:00:19]} Bf8 {[%emt 0:01:51]} 28. Bxf6 {[%emt 0:07:14]} Rxc4 {[%emt 0:00:46]} 29. bxc4 {[%emt 0:01:33]} gxf6 {[%emt 0:00:07]} 30. Rb3 {[%emt 0:03:49]} Rxc4 {[%emt 0:02:27]} 31. Rxb7 {[%emt 0:00:49]} Kg8 {[%emt 0:00:12]} 32. Rb8 {[%emt 0:01:29]} Rc2 {[%emt 0:01:01]} 33. h4 {[%emt 0:00:44]} Rxa2 {[%emt 0:00:33]} 34. h5 {[%emt 0:00:07]} Ra5 {[%emt 0:00:38]} 35. g4 {[%emt 0:01:03]} Rb5 {[%emt 0:00:17]} 36. Ra8 {[%emt 0:00:37]} a5 {[%emt 0:00:11]} 37. h6 {[%emt 0:00:53]} 1-0